Cogmind - Beta 17.1 @@@ ROGUE MODE // 2026.09.23 @ 21:54:18 Player: stixxx Result: Destroyed by S-10 Pest with Light Assault Rifle Performance ------------- Evolutions (0) 0 Regions Visited (3) 600 Robots Destroyed (10) 50 Value Destroyed (354) 354 Prototype IDs (0) 0 Alien Tech Used (0) 0 Bonus (0) 0 TOTAL SCORE: 1004 Bonus ------- None Cogmind --------- Core Integrity 0/250 Matter 290/300 Energy 239/250 System Corruption 0% Temperature Cool (0) Movement Walking (120) Location -10/Subcaves Parts ------- > --- POWER (1) -------- Ion Engine > --- PROPULSION (2) --- Aluminum Leg Aluminum Leg > --- UTILITY (2) ------ Improved Heat Sink Small Storage Unit > --- WEAPON (2) ------- Medium Laser Particle Gun > --- INVENTORY (8) ---- Aluminum Leg Aluminum Leg Aluminum Leg Small Laser Datajack Peak State ------------ > --- POWER ------------ Ion Engine > --- PROPULSION ------- Light Treads Light Treads > --- UTILITY ---------- Improved Heat Sink Small Storage Unit > --- WEAPON ----------- Small Laser Particle Gun > --- INVENTORY -------- Ion Engine Aluminum Leg Aluminum Leg Light Assault Rifle [Rating: 10] Favorites ----------- Power Ion Engine Engine Ion Engine Propulsion Light Treads Treads Light Treads Leg Aluminum Leg Utility Small Storage Unit Device Improved Heat Sink Storage Small Storage Unit Weapon Particle Gun Energy Gun Particle Gun Ballistic Gun Light Assault Rifle Launcher Grenade Launcher Build | -11 -10 -10 -10 ------- Run | Yrd Mat Min Sub Slots Evolved . | . . . . Power . | . . . . Propulsion . | . . . . Utility . | . . . . Weapon . | . . . . Parts Attached 15 | 6 . 9 . Power 2 | 1 . 1 . Engine 2 | 1 . 1 . Core . | . . . . Reactor . | . . . . Propulsion 5 | 2 . 3 . Treads 2 | 2 . . . Leg 3 | . . 3 . Wheel . | . . . . Hover . | . . . . Flight . | . . . . Utility 2 | 1 . 1 . Device 1 | . . 1 . Storage 1 | 1 . . . Processor . | . . . . Hackware . | . . . . Protection . | . . . . Artifact . | . . . . Weapon 6 | 2 . 4 . Energy Gun 4 | 1 . 3 . Energy Cannon . | . . . . Ballistic Gun 1 | 1 . . . Ballistic Cannon . | . . . . Launcher 1 | . . 1 . Special Weapon . | . . . . Impact Weapon . | . . . . Slashing Weapon . | . . . . Piercing Weapon . | . . . . Special Melee Weapon . | . . . . Unidentified Prototypes . | . . . . Parts Lost 5 | . 1 4 . Power 1 | . . 1 . Propulsion 2 | . . 2 . Utility . | . . . . Weapon 2 | . 1 1 . Highest Loss Streak 3 | . 1 3 . To Critical Strikes . | . . . . Average Backups 3 | 2 3 4 5 Power . | . 1 . . Propulsion 2 | 1 2 2 3 Utility . | . . . . Weapon . | . . . 1 Tool/Special . | . . . . Unused Backups 4 | . . 1 3 Power . | . . . . Propulsion 3 | . . 1 2 Utility . | . . . . Weapon . | . . . . Tool/Special 1 | . . . 1 Average Slot Usage (%) 92 | . 84 92 100 Engine 13 | . 14 12 14 Treads 15 | . 28 16 . Leg 11 | . . 8 28 Device 9 | . . 12 14 Storage 14 | . 14 14 14 Energy Gun 19 | . 13 18 28 Ballistic Gun 5 | . 14 4 . Launcher 2 | . . 4 . Peak Build Rating 10 | 6 6 10 10 Average Rating 8 | 4 5 9 10 On Entrance 5 | . 6 5 10 Avg Prop Armor Cover (%) . | . . . . Naked Turns . | . . . . Heaviest Build 16 | 13 13 16 16 Greatest Support 40 | 40 40 40 20 Greatest Overweight (x) . | . . . . Average Overweight (x) . | . . . . Largest Inventory Capacity 8 | 8 8 8 8 Average Capacity 7 | 6 8 8 8 Most Carried 6 | 3 4 6 5 Average Carried 4 | 2 3 4 5 Final Capacity 8 | 8 8 8 8 Final Carried 5 | 3 4 5 5 Class Distribution -------------------- 100% | Mutant Dominant Class ---------------- Mutant | -10/Materials Mutant | -10/Mines Mutant | -10/Subcaves Resources | -11 -10 -10 -10 ----------- Run | Yrd Mat Min Sub Matter Collected 383 | 216 . 167 . Remotely . | . . . . Salvage Created 308 | . . 278 30 Parts 13 | . . 10 3 Haulers Intercepted . | . . . . Recyclers Shooed . | . . . . Parts Field Recycled . | . . . . Retrieved Matter . | . . . . Parts Self-Destructed 3 | . . . 3 Prevented . | . . . . Parts Restored . | . . . . Kills | -11 -10 -10 -10 ------- Run | Yrd Mat Min Sub Combat Hostiles Destroyed 10 | . . 8 2 Guns 7 | . . 5 2 AOE 2 | . . 2 . Classes Destroyed 2 | . . 1 1 Swarmer 2 | . . . 2 Grunt 8 | . . 8 . Best Kill Streak 2 | . . 2 2 Combat Bots Only 2 | . . 2 2 Max Kills in Single Turn 1 | . . 1 1 Gunslinging . | . . . . Exploded 1 | . . 1 . Melee . | . . . . Uniques/NPCs Destroyed . | . . . . Combat | -11 -10 -10 -10 -------- Run | Yrd Mat Min Sub Hostile Shots Fired 107 | . 24 70 13 Missed 23 | . 8 12 3 Hits 84 | . 16 58 10 Projectile 84 | . 16 58 10 Critical Strikes 2 | . 1 1 . Damage Taken 1131 | . 208 846 77 Core 254 | . 29 206 19 Absorbed by Shields . | . . . . Core Remaining (%) 100 | 100 . . . Volleys Fired 48 | . 2 38 8 Largest 2 | . 2 2 2 Hottest 115 | . 60 115 115 Shots Fired 83 | . 4 63 16 Gun 78 | . 4 58 16 Cannon . | . . . . Launcher 5 | . . 5 . Special . | . . . . Kinetic 20 | . 2 18 . Thermal 56 | . . 40 16 Explosive 5 | . . 5 . Electromagnetic 2 | . 2 . . Robot Hit Streak 11 | . 2 11 3 Robot Miss Streak 3 | . 1 3 3 Penetration Max . | . . . . Secondary Targets . | . . . . Shots Hit Robots 58 | . 2 48 8 Core Hits 20 | . . 18 2 Critical Kills . | . . . . Critical Parts Destroyed 1 | . . 1 . Critical Strikes 6 | . 1 3 2 Burn 4 | . . 2 2 Destroy 1 | . . 1 . Corrupt 1 | . 1 . . Melee Attacks . | . . . . Impact . | . . . . Slashing . | . . . . Piercing . | . . . . Sneak Attacks . | . . . . Combat Hostiles . | . . . . Follow-up Attacks . | . . . . Damage Inflicted 908 | . 21 791 96 Guns 687 | . 21 570 96 Cannons . | . . . . Explosions 221 | . . 221 . Melee . | . . . . Ramming . | . . . . Kinetic 117 | . 8 109 . Thermal 557 | . . 461 96 Explosive 221 | . . 221 . Electromagnetic 13 | . 13 . . Impact . | . . . . Slashing . | . . . . Piercing . | . . . . Highest Corruption . | . . . . Average Corruption . | . . . . Corruption Purged . | . . . . Corruption Blocked . | . . . . Overload Shots . | . . . . Overflow Damage . | . . . . Projectiles . | . . . . Explosions . | . . . . Melee . | . . . . Knockbacks . | . . . . Impact . | . . . . Kinetic . | . . . . Secondary . | . . . . Self-Inflicted Damage 37 | . . 37 . Shots 2 | . . 2 . Rammed 1 | . 1 . . Targets Rammed 1 | . 1 . . Kicked . | . . . . Crushed . | . . . . Highest Temperature 144 | . 20 144 . Average Temperature 59 | . 11 62 . Received Heat Transfer 597 | . 135 462 . Siege Activations . | . . . . Martial Activations . | . . . . Shielding Activations . | . . . . Robots Disrupted . | . . . . Combat Hostiles . | . . . . Robots Corrupted . | . . . . Combat Hostiles . | . . . . Parts Fried . | . . . . Impact Corruptions . | . . . . Robots Melted 1 | . . 1 . Combat Hostiles 1 | . . 1 . Parts Melted 4 | . . 4 . Heat Transferred 1669 | . . 1262 407 Parts Sabotaged . | . . . . Parts Stolen . | . . . . Parts Stripped . | . . . . Power Chain Reactions . | . . . . Alert | -11 -10 -10 -10 ------- Run | Yrd Mat Min Sub Maximum Alert Level . | . . . . Low Security (%) 100 | 100 100 100 . Level 1 . | . . . . Level 2 . | . . . . Level 3 . | . . . . Level 4 . | . . . . Level 5 . | . . . . High Security . | . . . . Max Security . | . . . . Peak Influence 88 | . 15 88 . Initial . | . . . . Average 21 | . 1 36 . Influence Increases 334 | . 26 238 70 Destroy 0b10 Robot/C 200 | . . 160 40 Destroy Leader 40 | . . 40 . Successful Hack 11 | . 11 . . Disable Machine 15 | . 15 . . Destroy Structure 38 | . . 38 . Lose Combat Pursuer 30 | . . . 30 Influence Decreases 274 | . 26 198 50 Entered New Map 21 | . . . 21 Time Decay 213 | . 26 158 29 Lost Part 40 | . . 40 . Squads Dispatched 1 | . 1 . . Investigation . | . . . . Extermination . | . . . . Reinforcement 1 | . 1 . . Assault . | . . . . Garrison . | . . . . Intercept . | . . . . Searches Triggered . | . . . . Construction Impeded . | . . . . Haulers Reinforced . | . . . . Active Scanning Responses . | . . . . Cargo Convoy Interrupts . | . . . . Stealth | -11 -10 -10 -10 --------- Run | Yrd Mat Min Sub Distress Signals . | . . . . Communications Jammed . | . . . . Distress Signals . | . . . . Times Spotted 20 | . 7 8 5 Peak Tracking Total 4 | . 4 2 3 Tactical Retreats 1 | . . . 1 Traps | -11 -10 -10 -10 ------- Run | Yrd Mat Min Sub Traps Triggered . | . . . . Indirectly . | . . . . Trap Hack Attempts . | . . . . Triggered . | . . . . Disarmed . | . . . . Reprogrammed . | . . . . Reused . | . . . . Traps Extracted . | . . . . Installed . | . . . . Triggered . | . . . . Machines | -11 -10 -10 -10 ---------- Run | Yrd Mat Min Sub Machines Disabled 1 | . 1 . . Max in Single Turn 1 | . 1 . . Machines Repaired . | . . . . Machines Dismantled . | . . . . Machines Sabotaged . | . . . . Overloaded Fab Kills . | . . . . Hacking | -11 -10 -10 -10 --------- Run | Yrd Mat Min Sub Machines Accessed 2 | . 2 . . Terminals 2 | . 2 . . Fabricators . | . . . . Repair Stations . | . . . . Recycling Units . | . . . . Scanalyzers . | . . . . Garrison Access . | . . . . Total Hacks 3 | . 3 . . Successful 2 | . 2 . . Failed 1 | . 1 . . Catastrophic . | . . . . Database Lockouts . | . . . . Manual 2 | . 2 . . Terminals 3 | . 3 . . Fabricators . | . . . . Repair Stations . | . . . . Recycling Units . | . . . . Scanalyzers . | . . . . Garrison Access . | . . . . Terminal Hacks 2 | . 2 . . Record 1 | . 1 . . Level Access Points 1 | . 1 . . Fabricator Hacks . | . . . . Repair Station Hacks . | . . . . Recycling Unit Hacks . | . . . . Scanalyzer . | . . . . Garrison Access Hacks . | . . . . Unauthorized Hacks . | . . . . Terminals . | . . . . Fabricators . | . . . . Repair Stations . | . . . . Recycling Units . | . . . . Scanalyzers . | . . . . Garrison Access . | . . . . Data Cores Recovered . | . . . . Used . | . . . . Hacking Detections . | . . . . Full Trace Events . | . . . . Feedback Events . | . . . . Feedback Blocked . | . . . . Robot Schematics Acquired . | . . . . Robots Built . | . . . . Authchips . | . . . . Time . | . . . . Total Robot Build Rating . | . . . . Part Schematics Acquired . | . . . . Parts Built . | . . . . Authchips . | . . . . Time . | . . . . Total Part Build Rating . | . . . . Part Studies Acquired . | . . . . Parts Repaired . | . . . . Time . | . . . . Parts Recycled . | . . . . Recycled Matter . | . . . . Retrieved Matter . | . . . . Retrieved Components . | . . . . Parts Scanalyzed . | . . . . Part Schematics Acquired . | . . . . Parts Damaged . | . . . . Bothacking | -11 -10 -10 -10 ------------ Run | Yrd Mat Min Sub Used RIF Installer . | . . . . Robots Hacked . | . . . . Non-combat . | . . . . Combat . | . . . . Robot Hacks Applied . | . . . . Relay Couplers Released . | . . . . Fabnet Peak Effective % . | . . . . Robots Rewired . | . . . . Allies Hacked . | . . . . Hacks Repelled . | . . . . Allies | -11 -10 -10 -10 -------- Run | Yrd Mat Min Sub Total Allies . | . . . . Largest Group . | . . . . Highest-Rated Group . | . . . . Highest-Rated Ally . | . . . . Total Orders . | . . . . Ally Attacks . | . . . . Total Damage . | . . . . Kills . | . . . . Allies Corrupted . | . . . . Allies Melted . | . . . . Intel | -11 -10 -10 -10 ------- Run | Yrd Mat Min Sub Active Infowar (turns) . | . . . . Robot Analysis Total . | . . . . Derelict Logs Recovered 1 | . . . 1 Drone Launches . | . . . . Drone Recoveries . | . . . . Exploration | -11 -10 -10 -10 ------------- Run | Yrd Mat Min Sub Turns Passed 729 | 91 151 345 142 Spaces Moved 387 | 53 90 144 100 Core 4 | 4 . . . Treads 225 | 49 90 86 . Legs 158 | . . 58 100 Wheels . | . . . . Hover . | . . . . Flight . | . . . . Fastest Speed 50 | 50 160 120 120 Average Speed 142 | 151 160 143 120 Slowest Speed 160 | 160 160 160 120 Overloaded Moves . | . . . . Propulsion Burnouts . | . . . . Robots Hopped . | . . . . Potential Cave-ins . | . . . . Cave-ins Triggered . | . . . . Exploration Rate (%) 17 | 4 20 38 9 Regions Visited 3 Branch Regions 2 Pre-discovered Areas . | . . . . Known Exits Taken . | . . . . Unknown Exits Taken 3 | 1 1 1 . Scrap Searched 1 | . . 1 . Spaces Dug . | . . . . Terrain Destroyed 39 | . . 39 . Melee . | . . . . Projectile . | . . . . AOE 39 | . . 39 . Terrain Rammed . | . . . . Walls Destroyed . | . . . . Machines Disabled . | . . . . Actions | -11 -10 -10 -10 --------- Run | Yrd Mat Min Sub Total 484 | 61 93 222 108 Wait 24 | . . 24 . Move 384 | 52 89 143 100 Hop . | . . . . Pick Up 8 | 3 1 4 . Fast Attach 10 | 6 . 4 . Attach 4 | . . 4 . Detach 2 | . . 2 . Swap 1 | . . 1 . Drop 2 | . . 2 . Fire 48 | . 2 38 8 Melee . | . . . . Ram . | . . . . Kick . | . . . . Crush 1 | . 1 . . Escape Stasis . | . . . . Rewire . | . . . . Trap . | . . . . Miscellaneous . | . . . . Route ------- -11/Scrapyard -10/Materials (discovered 4 exits: Mat x3 / [*Min]) -10/Mines -10/Subcaves (discovered 1 exit: [*Mat]) History --------- Turn | Location | Event 2 | -11/Scrapyard | Met Revision 17 13 | -11/Scrapyard | Discovered new exit (range 15) 92 | -11/Scrapyard | Entered Materials 110 | -10/Materials | Discovered new exit (range 16) 169 | -10/Materials | Identified exit to Materials 243 | -10/Materials | Entered Mines 302 | -10/Mines | Build established: Mutant 438 | -10/Mines | Core integrity fell below 50% 464 | -10/Mines | Core integrity fell below 20% 472 | -10/Mines | Lost 3 parts (1p2n) 574 | -10/Mines | Discovered new exit (range 10) 588 | -10/Mines | Entered Subcaves 593 | -10/Subcaves | Learned Materials emergency access door positions 632 | -10/Subcaves | Discovered new exit (range 5) 638 | -10/Subcaves | Shifting Twisted Machinery released Flamer 643 | -10/Subcaves | Shifting Twisted Machinery released Sub. Power Source 730 | -10/Subcaves | Destroyed by S-10 Pest with Light Assault Rifle Last Messages --------------- K-01 Serf collects debris. LOCATION=UNKNOWN AMBIENT_HEAT=-10 GOAL=ESCAPE Acquired derelict log, extracted data. Data stored: Materials emergency access points. QG-FAP(u) builds Twisted Machinery. EXIT=FOUND Flamer falls loose from the Twisted Machinery. 1P-N52(u) builds Twisted Machinery. Sub. Power Source falls loose from the Twisted Machinery. S-10 Pest destroyed. Subatomizers dissect the Lgt. Assault Rifle. S-10 Pest suffers critical hit (Burn). Lgt. Ion Engine fries itself beyond repair. S-10 Pest suffers critical hit (Burn). S-10 Pest destroyed. Flight Unit fries itself beyond repair. Lgt. Assault Rifle fries itself beyond repair. Map ----- +----------------------------------------------------+ | ???????????????#?????????????????????????????????? | | ??????????????? #??????# #??????????????????????? | | ??????????????? #???## ???????????????????????? | | ??????????????? ### ????????????????????????? | | ??????????????? ???????????????????????? | | ???????????????? ????????????????????????? | | ???????????????? ??????????????????????? | | ???????????????? ? ##???????????????????? | | ????????????????# ?? ##??????????????????? | | ????????????????# ? #??????????????????? | | ????????????????# ?? #??????????????????? | | ???????????????## #??? #??????????????????? | | ?????????????### #??? #??????????????????? | | ????????????## # #?? ##?????????????????? | | ???????????## ### #?????????????????? | | ???????????# # #?????????????????? | | ???????????# # #??# #?????????????????? | | ???????????# ## ## #?## #?????????????????? | | ???????????### # #?# #?????????????????? | | ?????????????# ##??# #????????????#?????? | | ?????????????# # ##### ####?????????* ?????? | | ?????????????# ## # # #???????""""#????? | | ?????????????# ###?????? ????? | | ?????????????# # # ####??? ?????? | | ????????????# #####%##### # ### "" #???#?? | | ????????????# ####???#@#???## " "### ##? | | ????????????# #??????# #????# ## ### |# "#? | | ????????????## #??????# #????#""##???##"" ""? | | ?????????????## ???????#s###??# ##### """""""?? | | ??????????????# ???????#% #### ## ## """"""?? | | ??????????????## ???? ## ### "## ""##"""?? | | ????????????????? ?### """#### ## "#?????? | | ????????????????# ## ## #" ##????" | | ????????????????###??# ####"" | | ?????????????????????## ## """ | | ??????????????????????# # ## ## | | ??????????????????????## ####### ### ##### | | ???????????????????????###??????# #???# | | ????????????????????????????????# #### < #?? | | ????????????????????????????????###??## ? | | ??????????????????????????????????????## ## | | ???????????????????????????????????????# #?? # | | ???????????????????????????????????????# #?? #### | | ???????????????????????????????????????####??#???? | | ?????????????????????????????????????????????????? | | ?????????????????????????????????????????????????? | | ?????????????????????????????????????????????????? | | ?????????????????????????????????????????????????? | | ?????????????????????????????????????????????????? | | ?????????????????????????????????????????????????? | +----------------------------------------------------+ Best States ------------- Heat Dissipation 39 Energy Generation 10 Energy Capacity 250 Matter Stores 300 Matter Capacity 300 Sight Range 16 Terrain Scan Density 10 Evasion (%) 55 Recoil Reduction 2 Item Schematics ----------------- None Robot Schematics ------------------ None Fabricated ------------ Nothing Repaired ---------- Nothing Studied --------- None Alien Tech Used ----------------- None Achievements -------------- None Challenges ------------ None Game ------ Seed ShockboltSalvagingDetector Manual? 0 Play Time 00:07:38 Cumulative 18.8 hours Start 2026.09.23 @ 21:47:37 End 2026.09.23 @ 21:54:18 Sessions 1 Manual Loads 0 Difficulty Rogue Special Mode None Game No. 35 Rogue 35 Adventurer 0 Explorer 0 Win Type - Total 0 Types 0/0/0/0/0/0/0/0/0/0 Lore% 23 Gallery% 18 Achievement% 18 Wizard Run 0 Options --------- Layout 1 ASCII 0 Keyboard 1 Movement Numpad Keybinds 0 Fullscreen 1 Font 24/Smallcaps Map View 50x35 Zoom Use 0% Tactical HUD 0 Map Filters NONE Filters NONE Steam 1 RUN: fecfa076-662a-4b63-a2f4-348ea9669c5a